bitfinex/quotes_BTCUSD_20250108
["timestamp","ask_amount","ask_price","bid_price","bid_amount"]
[1736367251077,0.425726,93957.0,93945.0,0.0752]
[1736367251280,0.001,93958.0,93945.0,0.0752]
[1736367251551,0.212878,93951.0,93945.0,0.0752]
[1736367251965,0.212865,93956.0,93945.0,0.0752]
[1736367252190,0.212865,93956.0,93953.0,0.001]
[1736367252580,0.212865,93956.0,93945.0,0.0752]
[1736367252870,0.212856,93960.0,93945.0,0.29109]
[1736367253081,0.212858,93959.0,93945.0,0.1512255]
[1736367253236,0.08849922,93966.0,93945.0,0.0752]
[1736367253417,0.214866,93956.0,93945.0,0.0752]
[1736367254052,0.001,93956.0,93945.0,0.0752]
[1736367254251,0.001,93956.0,93945.0,0.288089]
[1736367254654,0.212863,93958.0,93945.0,0.288089]
[1736367255664,0.001,93956.0,93945.0,0.288089]
[1736367256073,0.001,93956.0,93946.0,0.10429976]
[1736367256899,0.212839,93968.0,93954.0,0.21287]
[1736367258222,0.001,93956.0,93954.0,0.21287]
[1736367258629,0.212839,93968.0,93954.0,0.21287]
[1736367259179,0.213839,93968.0,93954.0,0.21287]
[1736367259319,0.212839,93968.0,93954.0,0.21287]
[1736367259511,0.212839,93968.0,93954.0,0.22552909]
[1736367259711,0.213839,93968.0,93954.0,0.22952909]
[1736367259914,0.212847,93965.0,93954.0,0.01265909]
[1736367260154,0.212846,93965.0,93950.0,0.212878]
[1736367260356,0.212846,93965.0,93950.0,0.31717776]
[1736367260819,0.212846,93965.0,93950.0,0.53005576]
[1736367261267,0.212847,93964.0,93950.0,0.01254228]
[1736367261472,0.001,93965.0,93945.0,0.0752]
[1736367261473,0.212875,93952.0,93945.0,0.0752]
[1736367261672,0.212892,93944.0,93943.0,0.09544566]
[1736367261922,0.30139122,93944.0,93943.0,0.07344565]
[1736367262245,0.30139122,93944.0,93941.0,0.07344565]
[1736367263198,0.08849922,93942.0,93941.0,0.07335337]
[1736367263770,0.08849922,93942.0,93927.0,0.10993801]
[1736367263970,0.425799,93941.0,93927.0,0.10993801]
[1736367264174,0.212908,93937.0,93927.0,0.10993801]
[1736367264391,0.212899,93941.0,93927.0,0.10993801]
[1736367264608,0.212901,93940.0,93927.0,0.0970742]
[1736367265020,0.21291,93937.0,93927.0,0.0970742]
[1736367266173,0.21391,93937.0,93927.0,0.0970742]
[1736367267164,0.001,93937.0,93927.0,0.0970742]
[1736367267364,0.21291,93936.0,93927.0,0.0970742]
[1736367268725,0.001,93937.0,93927.0,0.0970742]
[1736367268933,0.001,93936.0,93931.0,0.21292]
[1736367269301,0.001,93936.0,93935.0,0.294413]
[1736367269498,0.001,93936.0,93935.0,0.39871276]
[1736367269648,0.001,93937.0,93936.0,0.0781]
[1736367269871,0.08849922,93957.0,93936.0,0.0781]
[1736367270073,0.001,93937.0,93936.0,0.0781]
[1736367270711,0.001,93937.0,93936.0,0.18239976]
[1736367271530,0.212858,93960.0,93936.0,0.18239976]
[1736367271734,0.212858,93960.0,93937.0,0.10429976]
[1736367271918,0.212858,93960.0,93943.0,0.212893]
[1736367272217,0.212858,93960.0,93944.0,0.212892]
[1736367273128,0.213858,93960.0,93944.0,0.212892]
[1736367273508,0.212858,93960.0,93944.0,0.212892]
[1736367274068,0.213858,93960.0,93944.0,0.212892]
[1736367274843,0.214858,93960.0,93944.0,0.212892]
[1736367275252,0.427716,93960.0,93943.0,0.212893]
[1736367275586,0.214858,93960.0,93943.0,0.212893]
[1736367276165,0.212858,93960.0,93943.0,0.212893]
[1736367276370,0.213858,93960.0,93943.0,0.212893]
[1736367276720,0.212858,93959.0,93943.0,0.212893]
[1736367277854,0.212858,93959.0,93937.0,0.19988796]
[1736367277855,0.212861,93958.0,93937.0,0.0955882]
[1736367278056,0.08849922,93957.0,93939.0,0.0955882]
[1736367278256,0.30136522,93956.0,93939.0,0.0955882]
[1736367278429,0.212875,93952.0,93939.0,0.0955882]
[1736367279089,0.212866,93956.0,93939.0,0.3084902]
[1736367279279,0.212875,93952.0,93939.0,0.0955882]
[1736367279458,0.08849922,93956.0,93939.0,0.0965882]
[1736367279695,0.08849922,93951.0,93939.0,0.001]
[1736367279905,0.08849922,93943.0,93936.0,0.0955882]
[1736367280082,0.08849922,93943.0,93939.0,0.003]
[1736367280224,0.212899,93941.0,93939.0,0.003]
[1736367281341,0.212899,93941.0,93930.0,0.0795]
[1736367281557,0.212895,93944.0,93930.0,0.292422]
[1736367281771,0.212901,93941.0,93930.0,0.0795]
[1736367281954,0.212901,93941.0,93939.0,0.001]
[1736367282170,0.212901,93941.0,93930.0,0.0795]
[1736367282551,0.001,93941.0,93930.0,0.0795]
[1736367282857,0.212895,93944.0,93930.0,0.0795]
[1736367283092,0.001,93941.0,93930.0,0.0795]
[1736367283300,0.002,93941.0,93931.0,0.10429976]
[1736367283454,0.001,93941.0,93931.0,0.10429976]
[1736367283863,0.002,93941.0,93931.0,0.10429976]
[1736367284362,0.212884,93948.0,93931.0,0.10429976]
[1736367284675,0.001,93941.0,93932.0,0.212919]
[1736367284899,0.001,93941.0,93932.0,0.31721876]
[1736367285216,0.08849922,93946.0,93930.0,0.1750882]
[1736367285437,0.425804,93940.0,93931.0,0.001]
[1736367285580,0.08849922,93942.0,93930.0,0.1750882]
[1736367285775,0.212916,93934.0,93930.0,0.1750882]
[1736367285976,0.212916,93934.0,93932.0,0.001]
[1736367286158,0.08849922,93940.0,93930.0,0.1750882]
[1736367286159,0.212908,93937.0,93930.0,0.1750882]
[1736367286806,0.212908,93937.0,93930.0,0.05749999]
[1736367287191,0.001,93934.0,93930.0,0.05749999]
[1736367287757,0.213903,93940.0,93930.0,0.05749999]
[1736367287876,0.001,93937.0,93930.0,0.05749999]
[1736367288375,0.001,93934.0,93930.0,0.05749999]
[1736367288812,0.21291,93936.0,93930.0,0.05749999]
[1736367289169,0.002,93937.0,93930.0,0.05749999]
[1736367289398,0.212911,93936.0,93930.0,0.05749999]
[1736367289693,0.212911,93936.0,93930.0,0.05849999]
[1736367289891,0.212909,93937.0,93930.0,0.05849999]
[1736367290930,0.30141522,93934.0,93930.0,0.001]
[1736367291339,0.30141522,93934.0,93927.0,0.0142742]
[1736367291731,0.212925,93930.0,93927.0,0.0142742]
[1736367291886,0.212925,93930.0,93921.0,0.00489571]
[1736367292215,0.212925,93930.0,93920.0,0.0955882]
[1736367292581,0.212917,93933.0,93920.0,0.0955882]
[1736367292766,0.212917,93933.0,93919.0,0.1763882]
[1736367292964,0.08949922,93934.0,93919.0,0.1763882]
[1736367293208,0.30141122,93936.0,93920.0,0.212947]
[1736367293412,0.212912,93936.0,93920.0,0.212947]
[1736367293571,0.08849922,93934.0,93920.0,0.212947]
[1736367293772,0.212912,93936.0,93920.0,0.212947]
[1736367294180,0.212897,93942.0,93926.0,0.212931]
[1736367294399,0.001,93936.0,93920.0,0.10429976]
[1736367294605,0.001,93936.0,93924.0,0.212937]
[1736367294804,0.001,93936.0,93924.0,0.3085252]
[1736367295227,0.003,93936.0,93924.0,0.3085252]
[1736367295442,0.001,93936.0,93924.0,0.3085252]
[1736367295627,0.212899,93941.0,93924.0,0.212937]
[1736367295920,0.001,93936.0,93924.0,0.212937]
[1736367296667,0.001,93936.0,93925.0,0.0955882]
[1736367296862,0.001,93936.0,93925.0,0.07358819]
[1736367297696,0.001,93936.0,93924.0,0.212937]
[1736367298129,0.08849922,93934.0,93919.0,0.23672314]
[1736367299128,0.08849922,93934.0,93919.0,0.09355465]
[1736367299676,0.08849922,93934.0,93919.0,0.09455465]
[1736367299880,0.08849922,93934.0,93919.0,0.09346229]
[1736367300340,0.08849922,93934.0,93920.0,0.212947]
[1736367300667,0.08849922,93940.0,93919.0,0.09346229]
[1736367300850,0.001,93934.0,93921.0,0.05431773]
[1736367301242,0.001,93934.0,93931.0,0.212922]
[1736367301441,0.001,93934.0,93933.0,0.212917]
[1736367301978,0.001,93934.0,93927.0,0.21293]
[1736367302102,0.30138822,93946.0,93930.0,0.212922]
[1736367302310,0.001,93934.0,93930.0,0.212922]
[1736367302561,0.002,93934.0,93931.0,0.005]
[1736367302998,0.001,93934.0,93931.0,0.005]
[1736367303404,0.212897,93942.0,93928.0,0.14316849]
[1736367303405,0.08849922,93933.0,93928.0,0.14316849]
[1736367303686,0.08849922,93933.0,93924.0,0.14316849]
[1736367304664,0.08849922,93933.0,93923.0,0.21294]
[1736367304876,0.001,93934.0,93927.0,0.005]
[1736367305059,0.08849922,93941.0,93928.0,0.212929]
[1736367306256,0.08849922,93926.0,93924.0,0.19020384]
[1736367306459,0.4145839,93925.0,93924.0,0.19020384]
[1736367306878,0.4145839,93925.0,93924.0,0.16820383]
[1736367307084,0.4908839,93925.0,93924.0,0.16820383]
[1736367307242,0.50277023,93925.0,93924.0,0.16820383]
[1736367307451,0.50277023,93925.0,93906.0,7e-05]
[1736367307653,0.212976,93907.0,93906.0,7e-05]
[1736367307856,0.31727576,93907.0,93906.0,7e-05]
[1736367309066,0.31727576,93907.0,93906.0,0.00307]
[1736367309270,0.31727576,93907.0,93906.0,7e-05]
[1736367309940,0.31827576,93907.0,93906.0,7e-05]
[1736367310127,0.40677498,93907.0,93906.0,7e-05]
[1736367310274,0.40877498,93907.0,93906.0,7e-05]
[1736367311488,0.40677498,93907.0,93906.0,7e-05]
[1736367311687,0.40577498,93907.0,93906.0,7e-05]
[1736367311893,0.09849922,93907.0,93906.0,7e-05]
[1736367312088,0.01,93907.0,93906.0,7e-05]
[1736367312289,0.001,93907.0,93905.0,0.19105099]
[1736367312566,0.007,93907.0,93906.0,0.001]
[1736367312896,0.08849922,93932.0,93924.0,0.212937]
[1736367313253,0.01216403,93936.0,93926.0,0.0492]
[1736367313459,0.08849922,93935.0,93926.0,0.0492]
[1736367313667,0.08849922,93941.0,93927.0,0.212931]
[1736367313824,0.08849922,93941.0,93926.0,0.0492]
[1736367314085,0.08849922,93941.0,93927.0,0.212931]
[1736367314830,0.08849922,93932.0,93915.0,0.212957]
[1736367314985,0.08849922,93924.0,93915.0,0.212958]
[1736367315195,0.08849922,93924.0,93914.0,0.0791]
[1736367315715,0.08849922,93924.0,93915.0,0.212958]
[1736367316078,0.09249922,93924.0,93915.0,0.212958]
[1736367316302,0.006,93924.0,93920.0,0.212946]
[1736367316502,0.002,93924.0,93920.0,0.212946]
[1736367316680,0.003,93924.0,93914.0,0.0791]
[1736367316885,0.003,93924.0,93914.0,0.05709999]
[1736367317304,0.001,93924.0,93914.0,0.05709999]
[1736367317534,0.001,93924.0,93921.0,0.212942]
[1736367317744,0.001,93924.0,93923.0,0.21294]
[1736367317959,0.1,93967.0,93930.0,0.212923]
[1736367317960,0.08849922,93945.0,93930.0,0.212923]
[1736367318204,0.08849922,93945.0,93923.0,0.10429976]
[1736367318205,0.08849922,93945.0,93931.0,0.212921]
[1736367318853,0.08849922,93950.0,93923.0,0.10429976]
[1736367319186,0.212858,93960.0,93923.0,0.12127491]
[1736367319187,0.001,93924.0,93923.0,0.12127491]
[1736367319337,0.08849922,93945.0,93924.0,0.212938]
[1736367319767,0.08849922,93941.0,93931.0,0.001]
[1736367319995,0.08849922,93929.0,93918.0,0.09574466]
[1736367320362,0.30142622,93929.0,93918.0,0.09574466]
[1736367320587,0.08849922,93929.0,93918.0,0.09574466]
[1736367320785,0.08849922,93929.0,93916.0,0.212955]
[1736367321393,0.08849922,93934.0,93921.0,0.212943]
[1736367321831,0.08849922,93934.0,93921.0,0.19094299]
[1736367321997,0.08949922,93929.0,93914.0,0.05709999]
[1736367322202,0.212929,93928.0,93914.0,0.05709999]
[1736367322849,0.212929,93928.0,93915.0,0.212958]
[1736367323196,0.08849922,93929.0,93915.0,0.212958]
[1736367324351,0.08849922,93929.0,93914.0,0.05809999]
[1736367324561,0.08849922,93939.0,93915.0,0.10429976]
[1736367324713,0.08849922,93954.0,93920.0,0.0471]
[1736367324919,0.08849922,93953.0,93921.0,0.10429976]
[1736367325135,0.00884992,93952.0,93928.0,0.02169102]
[1736367325411,0.00884992,93952.0,93940.0,0.2129]
[1736367325606,0.00884992,93952.0,93937.0,0.293006]
[1736367325740,0.08849922,93948.0,93929.0,0.212926]
[1736367325940,0.212886,93947.0,93930.0,0.212924]
[1736367326167,0.08849922,93945.0,93931.0,0.0314715]
[1736367326345,0.08849922,93951.0,93931.0,0.0314715]
[1736367326788,0.30137722,93951.0,93931.0,0.0314715]
[1736367326988,0.08849922,93951.0,93938.0,0.212906]
[1736367327348,0.212879,93950.0,93933.0,0.212917]
[1736367327549,0.08849922,93951.0,93936.0,0.212908]
[1736367328522,0.212879,93950.0,93936.0,0.212908]
[1736367328882,0.08849922,93951.0,93936.0,0.212908]
[1736367329093,0.08849922,93954.0,93939.0,0.212902]
[1736367329819,0.08849922,93954.0,93934.0,0.212915]
[1736367329999,0.08849922,93955.0,93940.0,0.2129]
[1736367330686,0.001,93954.0,93940.0,0.2129]
[1736367330889,0.001,93954.0,93940.0,0.10429976]
[1736367331260,0.001,93954.0,93950.0,0.425756]
[1736367331489,0.08849922,93972.0,93960.0,0.212855]
[1736367331893,0.212822,93975.0,93960.0,0.19085499]
[1736367332064,0.425636,93977.0,93961.0,0.0781]
[1736367332294,0.08849922,93978.0,93961.0,0.0781]
[1736367332465,0.08849922,93978.0,93968.0,0.212838]
[1736367332701,0.08849922,93979.0,93963.0,0.212849]
[1736367332881,0.212795,93987.0,93973.0,0.212826]
[1736367333139,0.08849922,93990.0,93964.0,0.10429976]
[1736367333345,0.08849922,93987.0,93974.0,0.212822]
[1736367333558,0.08849922,93990.0,93964.0,0.10429976]
[1736367333758,0.21279,93989.0,93972.0,0.212828]
[1736367333964,0.002,93987.0,93972.0,0.212828]
[1736367334168,0.003,93975.0,93972.0,0.425656]
[1736367334433,0.003,93975.0,93972.0,0.52995576]
[1736367334697,0.21268781,93993.0,93972.0,0.31712776]
[1736367334931,0.001,93990.0,93979.0,0.212813]
[1736367335203,0.001,93990.0,93983.0,0.212803]
[1736367335482,0.001,93990.0,93979.0,0.212813]
[1736367335746,0.001,93990.0,93973.0,0.18639976]
[1736367335999,0.001,93990.0,93979.0,0.212813]
[1736367336275,0.001,93993.0,93984.0,0.212801]
[1736367336722,0.001,93993.0,93988.0,0.212791]
[1736367337267,0.30125222,94006.0,93988.0,0.212791]
[1736367337651,0.212753,94006.0,93990.0,0.212788]
[1736367337862,0.212736,94014.0,93997.0,0.212771]
[1736367338170,0.08849922,94006.0,93989.0,0.1269]
[1736367338376,0.212757,94004.0,93989.0,0.1269]
[1736367338988,0.001,94006.0,93995.0,0.212776]
[1736367339253,0.212735,94014.0,93992.0,0.212781]
[1736367339466,0.212735,94014.0,93990.0,0.28990173]
[1736367339467,0.08849922,94022.0,94006.0,0.212752]
[1736367339614,0.30120922,94025.0,94001.0,0.0816]
[1736367339820,0.212721,94020.0,94002.0,0.10429976]
[1736367340029,0.212721,94020.0,94004.0,0.212755]
[1736367340208,0.30120922,94025.0,94009.0,0.212745]
[1736367341454,0.212719,94021.0,94009.0,0.212745]
[1736367341623,0.212719,94021.0,94005.0,0.212754]
[1736367341824,0.005,94025.0,94010.0,0.212743]
[1736367342024,0.005,94025.0,94023.0,0.212712]
[1736367342295,0.005,94025.0,94011.0,0.10429976]
[1736367342420,0.212682,94037.0,94021.0,0.212716]
[1736367342628,0.425365,94037.0,94021.0,0.212716]
[1736367342816,0.08849922,94038.0,94011.0,0.10429976]
[1736367343014,0.287641,94055.0,93986.0,0.09574466]
[1736367343015,0.08849922,94023.0,94001.0,0.09737157]
[1736367343329,0.212693,94032.0,93986.0,0.09574466]
[1736367343330,0.08849922,94005.0,93986.0,0.09574466]
[1736367343534,0.08849922,93997.0,93986.0,0.09574466]
[1736367343732,0.212787,93991.0,93986.0,0.09574466]
[1736367343961,0.30127622,93995.0,93982.0,0.09574466]
[1736367344388,0.212787,93991.0,93982.0,0.09574466]
[1736367344608,0.30127622,93995.0,93982.0,0.09574466]
[1736367344971,0.003,93991.0,93982.0,0.09574466]
[1736367345434,0.212769,93999.0,93986.0,0.212795]
[1736367345835,0.212769,93999.0,93989.0,0.00204]
[1736367346063,0.362757,94004.0,93989.0,0.00204]
[1736367346064,0.08849922,94003.0,93990.0,0.212788]
[1736367346199,0.08849922,94003.0,93989.0,4e-05]
[1736367346397,0.001,93991.0,93989.0,4e-05]
[1736367346814,0.30127822,93995.0,93989.0,4e-05]
[1736367347159,0.08849922,93995.0,93989.0,4e-05]
[1736367347348,0.30127622,93995.0,93989.0,4e-05]
[1736367347515,0.001,93991.0,93989.0,4e-05]
[1736367347709,0.30127622,93995.0,93989.0,4e-05]
[1736367348332,0.212761,94002.0,93989.0,4e-05]
[1736367348513,0.08849922,94003.0,93989.0,4e-05]
[1736367348698,0.212765,94000.0,93989.0,4e-05]
[1736367349162,0.425531,94000.0,93989.0,4e-05]
[1736367349343,0.212765,94000.0,93990.0,0.0794]
[1736367349552,0.08849922,93997.0,93989.0,4e-05]
[1736367349723,0.22172492,93996.0,93989.0,4e-05]
[1736367350926,0.212775,93996.0,93989.0,0.00104]
[1736367351132,0.212766,94000.0,93989.0,0.00104]
[1736367351133,0.212766,94000.0,93989.0,4e-05]
[1736367351362,0.212766,94000.0,93989.0,0.00104]
[1736367351532,0.08849922,94003.0,93989.0,0.00104]
[1736367351796,0.08849922,94014.0,93990.0,0.10429976]
[1736367351992,0.08849922,94014.0,94003.0,0.212758]
[1736367352397,0.08849922,94014.0,94006.0,0.21275]
[1736367352642,0.08849922,94014.0,94003.0,0.212758]
[1736367353716,0.212736,94013.0,94002.0,0.0794]
[1736367354130,0.08849922,94014.0,94002.0,0.0794]
[1736367354640,0.212736,94013.0,94002.0,0.0794]
[1736367354842,0.08849922,93997.0,93989.0,4e-05]
[1736367355065,0.212788,93990.0,93989.0,4e-05]
[1736367355295,0.30128722,93990.0,93989.0,4e-05]
[1736367355673,0.55558698,93990.0,93989.0,4e-05]
[1736367356042,0.75658698,93990.0,93989.0,0.00104]
[1736367356317,0.30134422,93965.0,93964.0,0.09574466]
[1736367356516,0.40564398,93965.0,93964.0,0.09574466]
[1736367356799,0.40564398,93965.0,93956.0,0.2377548]
[1736367356800,0.08849922,93953.0,93939.0,0.07378465]
[1736367357003,0.08849922,93944.0,93939.0,0.07378465]
[1736367357229,0.08849922,93940.0,93939.0,0.07378465]
[1736367357480,0.08849922,93940.0,93923.0,0.0466]
[1736367357755,0.08849922,93938.0,93913.0,0.35657899]
[1736367358022,0.212913,93935.0,93918.0,0.212951]
[1736367358202,0.08849922,93930.0,93915.0,0.212958]
[1736367358413,0.212926,93929.0,93915.0,0.212958]
[1736367358750,0.08849922,93930.0,93915.0,0.212958]
[1736367359988,0.212908,93937.0,93904.0,0.01460815]
[1736367359989,0.212908,93937.0,93921.0,0.212944]
[1736367360217,0.0013307,93936.0,93915.0,0.212957]
[1736367360587,0.212895,93943.0,93927.0,0.21293]
[1736367360787,0.30138622,93947.0,93923.0,0.212938]
[1736367360965,0.30138622,93947.0,93924.0,0.10429976]
[1736367361203,0.08849922,93951.0,93924.0,0.10429976]
[1736367361375,0.08849922,93947.0,93932.0,0.212919]
[1736367361587,0.30138522,93947.0,93932.0,0.212919]
[1736367361796,0.30138522,93947.0,93932.0,0.19091899]
[1736367362196,0.08849922,93951.0,93932.0,0.19091899]
[1736367362397,0.08849922,93951.0,93929.0,0.212925]
[1736367362398,0.08849922,93957.0,93933.0,0.10429976]
[1736367362547,0.08849922,93961.0,93935.0,0.212913]
[1736367362755,0.0815,93981.0,93934.0,0.01516998]
[1736367362756,0.08849922,93966.0,93942.0,0.212897]
[1736367362955,0.08849922,93956.0,93943.0,0.212894]
[1736367363157,0.08849922,93964.0,93943.0,0.212894]
[1736367363365,0.08849922,93960.0,93945.0,0.212889]
[1736367363569,0.005,93957.0,93945.0,0.212889]
[1736367363967,0.08849922,93960.0,93945.0,0.212889]
[1736367364249,0.08849922,93960.0,93932.0,0.02135294]
[1736367364250,0.212858,93959.0,93942.0,0.212897]
[1736367364486,0.212868,93955.0,93932.0,0.02135294]
[1736367364691,0.212858,93959.0,93940.0,0.212901]
[1736367364895,0.08849922,93960.0,93944.0,0.212891]
[1736367365119,0.08849922,93960.0,93933.0,0.10429976]
[1736367365338,0.21284,93967.0,93934.0,0.04824893]
[1736367365561,0.08849922,93966.0,93935.0,0.10429976]
[1736367365756,0.212845,93965.0,93947.0,0.212885]
[1736367366071,0.212845,93965.0,93950.0,0.212877]
[1736367366421,0.212845,93965.0,93940.0,0.212899]
[1736367366422,0.08849922,93957.0,93940.0,0.2129]
[1736367366643,0.425731,93956.0,93940.0,0.2129]
[1736367366876,0.425731,93956.0,93940.0,0.19089999]
[1736367367246,0.212865,93956.0,93940.0,0.19089999]
[1736367368448,0.08849922,93953.0,93932.0,0.212919]
[1736367368651,0.212886,93947.0,93932.0,0.10429976]
[1736367368850,0.212877,93951.0,93933.0,0.212917]
[1736367369052,0.08849922,93953.0,93937.0,0.212908]
[1736367369263,0.08849922,93963.0,93938.0,0.10429976]
[1736367369468,0.08849922,93966.0,93953.0,0.21287]
[1736367369695,0.08849922,93970.0,93939.0,0.0751]
[1736367370008,0.001,93956.0,93950.0,0.212878]
[1736367370148,0.002,93953.0,93951.0,0.212876]
[1736367370370,0.30131722,93977.0,93960.0,0.212854]
[1736367370572,0.002,93966.0,93960.0,0.212854]
[1736367371001,0.08849922,93974.0,93958.0,0.21286]
[1736367371207,0.08849922,93974.0,93959.0,0.0778]
[1736367371601,0.08849922,93974.0,93960.0,0.212856]
[1736367371810,0.08849922,93974.0,93959.0,0.0778]
[1736367371811,0.001,93970.0,93967.0,0.19083899]
[1736367372019,0.08849922,93979.0,93963.0,0.212848]
[1736367372219,0.08849922,93979.0,93960.0,0.212855]
[1736367372424,0.001,93974.0,93960.0,0.212855]
[1736367372821,0.001,93974.0,93964.0,0.212846]
[1736367373243,0.08849922,93979.0,93964.0,0.212846]
[1736367373455,0.001,93974.0,93964.0,0.212846]
[1736367373657,0.002,93974.0,93960.0,0.212855]
[1736367373858,0.001,93974.0,93959.0,0.0778]
[1736367374056,0.001,93974.0,93969.0,0.212835]
[1736367374426,0.002,93974.0,93969.0,0.212835]
[1736367374838,0.08849922,93984.0,93969.0,0.212835]
[1736367375056,0.001,93974.0,93969.0,0.212835]
[1736367375373,0.212808,93982.0,93960.0,0.10429976]
[1736367375506,0.212816,93978.0,93960.0,0.10429976]
[1736367375700,0.001,93974.0,93962.0,0.212851]
[1736367375908,0.001,93974.0,93966.0,0.212842]
[1736367376112,0.001,93974.0,93969.0,0.212834]
[1736367376328,0.001,93974.0,93972.0,0.212827]
[1736367377105,0.212795,93988.0,93972.0,0.19082699]
[1736367377289,0.30128322,93992.0,93972.0,0.0403661]
[1736367377488,0.08849922,93996.0,93972.0,0.10429976]
[1736367377732,0.08849922,94006.0,93981.0,0.212808]
[1736367377937,0.08849922,94006.0,93991.0,0.212785]
[1736367378315,0.08849922,94006.0,93995.0,0.08]
[1736367378929,0.08949922,94006.0,93995.0,0.08]
[1736367379132,0.08849922,94006.0,93995.0,0.08]
[1736367379308,0.212754,94005.0,93995.0,0.08]
[1736367379511,0.08849922,94013.0,93995.0,0.08]
[1736367379726,0.08849922,94021.0,93996.0,0.10429976]
[1736367379888,0.08849922,94021.0,93997.0,0.212772]
[1736367379889,0.21272,94020.0,93997.0,0.212772]
[1736367380092,0.21272,94020.0,94008.0,0.212745]
[1736367380375,0.08849922,94023.0,94008.0,0.212745]
[1736367381106,0.212707,94026.0,94008.0,0.23404996]
[1736367381313,0.30120222,94028.0,94008.0,0.12560472]
[1736367381711,0.08849922,94028.0,94016.0,0.212728]
[1736367381926,0.212704,94027.0,94013.0,0.212735]
[1736367382137,0.08849922,94028.0,94013.0,0.212735]
[1736367382138,0.001,94023.0,94013.0,0.212735]
[1736367382512,0.001,94023.0,94017.0,0.212726]
[1736367383048,0.30118122,94037.0,94021.0,0.212718]
[1736367383251,0.08849922,94037.0,94022.0,0.0812]
[1736367383472,0.212679,94038.0,94022.0,0.0812]
[1736367383473,0.212679,94038.0,94023.0,0.212713]
[1736367383669,0.08849922,94037.0,94023.0,0.212713]
[1736367383871,0.212679,94038.0,94023.0,0.425426]
[1736367384076,0.212679,94038.0,94023.0,0.212713]
[1736367384695,0.212689,94034.0,94022.0,0.0812]
[1736367385090,0.212679,94038.0,94023.0,0.212713]
[1736367385758,0.425359,94038.0,94022.0,0.0812]
[1736367386164,0.425359,94038.0,94022.0,0.0832]
[1736367386295,0.425359,94038.0,94022.0,0.0812]
[1736367386489,0.212684,94036.0,94022.0,0.0812]
[1736367386719,0.08840606,94025.0,94008.0,0.129]
[1736367386920,0.10429976,94035.0,94008.0,0.0812]
[1736367386921,0.08840606,94023.0,94008.0,0.0812]
[1736367387301,0.212724,94019.0,94008.0,0.0812]
[1736367387496,0.212716,94022.0,94008.0,0.0812]
[1736367387768,0.30110906,94028.0,94013.0,0.212734]
[1736367388094,0.002,94023.0,94013.0,0.212734]
[1736367388328,0.002,94023.0,94017.0,0.212727]
[1736367388523,0.08840606,94032.0,94017.0,0.212727]
[1736367388744,0.002,94022.0,94017.0,0.212727]
[1736367388901,0.002,94022.0,94018.0,0.24442768]
[1736367389461,0.002,94022.0,94018.0,0.45715268]
[1736367389836,0.002,94022.0,94020.0,0.21272]
[1736367390270,0.08840606,94073.0,94022.0,0.0801]
[1736367390493,0.08840606,94073.0,94041.0,0.15]
[1736367390656,0.10170797,94073.0,94051.0,0.212649]
[1736367390860,0.02166619,94064.0,94051.0,0.53163]
[1736367391058,0.08840606,94065.0,94051.0,0.53163]
[1736367391293,0.08840606,94065.0,94052.0,0.212646]
[1736367391494,0.08840606,94065.0,94052.0,0.8399596]
[1736367391857,0.08840606,94070.0,94052.0,0.6273136]
[1736367392061,0.09240606,94073.0,94056.0,0.212638]
[1736367392313,0.08840606,94064.0,94056.0,0.212638]
[1736367392741,0.08840606,94071.0,94052.0,0.8399606]
[1736367392986,0.08840606,94064.0,94060.0,0.212628]
[1736367393404,0.08840606,94073.0,94064.0,0.21262]
[1736367393773,0.001,94071.0,94068.0,0.212612]
[1736367394375,0.08840606,94073.0,94065.0,0.212617]
[1736367394679,0.08840606,94073.0,94053.0,0.08399606]
[1736367394680,0.08840606,94070.0,94064.0,0.001]
[1736367394884,0.08840606,94070.0,94059.0,0.21263]
[1736367395289,0.212609,94069.0,94068.0,0.002]
[1736367395494,0.212609,94069.0,94059.0,0.21263]
[1736367395694,0.08840606,94070.0,94059.0,0.21263]
[1736367395927,0.08840606,94070.0,94064.0,0.002]
[1736367396481,0.08840606,94065.0,94064.0,0.002]
[1736367396666,0.40665286,94065.0,94064.0,0.002]
[1736367396889,0.40665286,94065.0,94052.0,0.53162]
[1736367396890,0.30105206,94053.0,94052.0,0.51161999]
[1736367398185,0.08840606,94053.0,94052.0,0.51161999]
[1736367398560,0.08840606,94054.0,94052.0,0.51261999]
[1736367398993,0.212646,94053.0,94052.0,0.51261999]
[1736367399376,0.30105206,94053.0,94052.0,0.51161999]
[1736367399764,0.30105206,94053.0,94052.0,0.51461999]
[1736367400972,0.30205206,94053.0,94052.0,0.51161999]
[1736367401174,0.213646,94053.0,94052.0,0.51461999]
[1736367401368,0.212637,94057.0,94052.0,0.56608199]
[1736367401577,0.30103506,94061.0,94052.0,0.51161999]
[1736367401874,0.212618,94066.0,94052.0,0.51161999]
[1736367401875,0.001,94053.0,94052.0,0.48961998]
[1736367402710,0.212616,94066.0,94053.0,0.212646]
[1736367402863,0.001,94061.0,94053.0,0.212646]
[1736367403061,0.001,94061.0,94053.0,0.425292]
[1736367403264,0.001,94061.0,94056.0,0.212637]
[1736367403458,0.001,94061.0,94057.0,0.425273]
[1736367403645,0.001,94061.0,94057.0,0.212636]
[1736367404185,0.001,94061.0,94054.0,0.212641]
[1736367404366,0.001,94061.0,94054.0,0.786251]
[1736367404547,0.212628,94061.0,94054.0,0.57361]
[1736367404746,0.212628,94061.0,94054.0,0.57351799]
[1736367405375,0.212628,94061.0,94054.0,0.57751799]
[1736367405620,0.08840606,94064.0,94054.0,0.57751799]
[1736367406334,0.30101906,94068.0,94055.0,0.212641]
[1736367406488,0.08840606,94064.0,94055.0,0.212641]
[1736367406693,0.30101906,94068.0,94055.0,0.212641]
[1736367406918,0.08840606,94064.0,94055.0,0.212641]
[1736367407118,0.30102806,94064.0,94055.0,0.5737]